bitfinex/quotes_SOLUSD_20260203
["timestamp","ask_amount","ask_price","bid_price","bid_amount"]
[1770139199133,16.60904289,100.13,100.1,71.79791557]
[1770139199339,16.60904289,100.13,100.1,44.07791557]
[1770139200140,16.60728045,100.15,100.11,0.45542541]
[1770139200323,9.98525443,100.15,100.11,0.45542541]
[1770139200521,6.62202602,100.14,100.11,0.45542541]
[1770139200756,6.62202602,100.13,100.1,44.07791557]
[1770139201117,9.98701687,100.13,100.1,44.07791557]
[1770139201422,16.60904289,100.13,100.1,44.53334098]
[1770139201634,9.98701687,100.13,100.1,44.53334098]
[1770139201838,16.60904289,100.13,100.1,44.53334098]
[1770139202021,0.49341551,100.12,100.08,27.72]
[1770139202338,6.62202602,100.11,100.08,0.45542541]
[1770139202644,6.62202602,100.12,100.08,10.44738133]
[1770139202941,41.57658508,100.13,100.09,9.99094542]
[1770139203118,9.98701687,100.13,100.1,0.45542541]
[1770139203319,17.10161029,100.14,100.1,0.45542541]
[1770139203633,7.11544153,100.12,100.08,38.18695558]
[1770139203812,6.62202602,100.11,100.08,38.18730279]
[1770139204014,6.62202602,100.11,100.08,0.45542541]
[1770139204216,6.62202602,100.09,100.06,0.1]
[1770139204519,7.11544153,100.07,100.03,0.1]
[1770139204730,6.62202602,100.04,100.03,0.1]
[1770139204945,6.62202602,100.07,100.04,0.45542541]
[1770139205242,6.62202602,100.07,100.03,10.09695319]
[1770139205243,16.61702851,100.05,100.03,0.1]
[1770139205415,6.62202602,100.04,100.03,0.1]
[1770139205744,6.62202602,100.04,100.01,0.55542541]
[1770139206617,6.62202602,100.02,100.01,0.1]
[1770139206817,6.62202602,100.03,99.99,0.55542541]
[1770139207013,6.62202602,100.0,99.99,0.1]
[1770139207626,16.62210698,100.0,99.99,0.1]
[1770139207832,16.62210698,100.0,99.958,0.45542541]
[1770139207833,41.62210698,100.0,99.958,0.45542541]
[1770139208028,6.62202602,99.98,99.958,0.45542541]
[1770139208635,6.62202602,99.99,99.958,0.45542541]
[1770139209031,6.62202602,99.97,99.944,38.19825161]
[1770139209228,6.62202602,99.99,99.945,0.45542541]
[1770139209522,6.62202602,99.98,99.946,0.45542541]
[1770139210339,6.62202602,99.97,99.946,0.45542541]
[1770139210540,6.62202602,99.97,99.944,35.72471398]
[1770139210729,6.62202602,99.97,99.932,0.45542541]
[1770139210730,6.62202602,99.96,99.932,0.45542541]
[1770139210930,6.62202602,99.95,99.91,0.45542541]
[1770139211126,6.62202602,99.94,99.91,0.45542541]
[1770139211327,10.00610372,99.939,99.91,0.45542541]
[1770139211734,6.62202602,99.96,99.912,0.45542541]
[1770139211927,10.00230052,99.977,99.941,0.45542541]
[1770139212137,10.00150654,99.985,99.951,0.45542541]
[1770139212333,6.62202602,99.98,99.951,0.45542541]
[1770139212633,6.62202602,99.97,99.936,0.45542541]
[1770139212840,6.62202602,99.96,99.93,0.14216157]
[1770139213039,6.62202602,99.97,99.931,0.45542541]
[1770139213341,10.00310096,99.969,99.933,0.45542541]
[1770139213539,0.49341551,99.983,99.933,0.45542541]
[1770139213540,10.00260544,99.974,99.933,0.45542541]
[1770139213843,6.62202602,99.99,99.951,0.45542541]
[1770139214041,10.00060003,99.994,99.951,0.45542541]
[1770139214423,6.62202602,99.99,99.951,0.45542541]
[1770139216225,6.62202602,99.99,99.953,0.45542541]
[1770139216444,10.00049458,99.996,99.953,0.45542541]
[1770139217435,10.00049458,99.996,99.955,0.45542541]
[1770139218345,6.62202602,99.99,99.948,10.00518017]
[1770139218544,6.66188949,99.97,99.92,6.66188949]
[1770139218751,6.66188949,99.97,99.932,0.45542541]
[1770139219244,6.66188949,99.97,99.933,0.45542541]
[1770139219946,10.00210044,99.979,99.935,0.45542541]
[1770139220148,10.00210044,99.979,99.941,0.45542541]
[1770139220852,39.98679364,100.04,99.934,10.00660435]
[1770139220853,9.99946438,100.01,99.961,0.45278871]
[1770139221928,9.99764654,100.03,99.991,0.45278871]
[1770139222148,6.66188949,100.02,99.98,0.45278871]
[1770139223350,6.66188949,100.01,99.98,0.45278871]
[1770139223530,7.16071447,100.02,99.98,0.45278871]
[1770139223931,89.96030754,100.05,99.991,0.45278871]
[1770139223932,34.98292931,100.05,99.991,0.45278871]
[1770139224145,10.4932934,100.06,100.02,0.45278871]
[1770139224743,16.65635791,100.06,100.02,0.45278871]
[1770139224935,6.66188949,100.05,100.02,0.45278871]
[1770139225250,7.16071447,100.03,99.982,0.45278871]
[1770139225437,6.66188949,100.02,99.982,0.45278871]
[1770139225948,7.16071447,100.03,99.984,0.45278871]
[1770139226253,9.99654615,100.04,100.0,6.66188949]
[1770139226439,16.65843564,100.04,99.991,0.45278871]
[1770139226636,7.16071447,100.07,100.02,0.45278871]
[1770139226944,7.16071447,100.08,100.03,0.45278871]
[1770139227147,6.66188949,100.06,100.01,7.1146782]
[1770139227445,7.16071447,100.06,100.01,0.45278871]
[1770139227647,34.97607398,100.07,100.03,0.45278871]
[1770139227848,6.66188949,100.06,100.03,0.45278871]
[1770139228032,41.64162373,100.06,100.01,10.4514567]
[1770139228227,7.16071447,100.05,100.0,27.78]
[1770139228444,6.66188949,100.03,99.997,0.45278871]
[1770139228844,6.66188949,100.03,100.0,9.99980062]
[1770139229037,16.65532137,100.07,100.02,0.45278871]
[1770139229338,16.65532137,100.07,100.02,7.1146782]
[1770139229839,6.66188949,100.05,100.0,60.03490199]
[1770139230044,6.66188949,100.05,100.01,10.45123058]
[1770139230241,7.16071447,100.06,100.01,10.45123058]
[1770139230853,16.65642294,100.06,100.02,0.45278871]
[1770139231158,9.9933715,100.07,100.03,0.45278871]
[1770139231367,16.65526099,100.07,100.03,0.45278871]
[1770139232029,6.66188949,100.06,100.02,9.99774738]
[1770139232231,6.66188949,100.06,100.02,10.45053609]
[1770139232433,42.13659821,100.07,100.02,10.45053609]
[1770139232633,6.66188949,100.06,100.02,0.45278871]
[1770139233050,7.16071447,100.06,100.02,0.45278871]
[1770139233236,42.13659821,100.07,100.02,10.45053028]
[1770139233632,6.66188949,100.06,100.02,0.45278871]
[1770139233834,42.13659821,100.07,100.02,10.45067908]
[1770139234034,94.18620623,100.1,100.04,0.45278871]
[1770139234035,16.65452778,100.08,100.04,0.45278871]
[1770139234254,9.99233436,100.08,100.04,0.45278871]
[1770139234754,34.96536972,100.1,100.05,0.45278871]
[1770139235052,9.98801438,100.12,100.08,7.1146782]
[1770139235246,0.2,100.14,100.11,0.45278871]
[1770139235557,10.4812054,100.18,100.12,7.1146782]
[1770139235853,6.66188949,100.14,100.09,34.8746782]
[1770139236151,6.66188949,100.12,100.07,16.65443534]
[1770139236330,6.66188949,100.1,100.06,10.44627954]
[1770139237761,7.16071447,100.11,100.07,10.44570624]
[1770139238342,17.15003336,100.11,100.07,10.44570624]
[1770139238965,16.65120838,100.11,100.07,10.44570624]
[1770139239150,16.65042512,100.12,100.08,0.45278871]
[1770139239858,10.48736061,100.12,100.07,10.44570624]
[1770139240058,6.66188949,100.09,100.05,38.20701072]
[1770139240364,6.66188949,100.09,100.01,85.34890435]
[1770139240365,16.65512293,100.07,100.03,10.4493269]
[1770139240661,6.66188949,100.06,100.03,0.45278871]
[1770139241160,6.66188949,100.05,100.03,0.45278871]
[1770139241358,6.66188949,100.05,100.01,52.75536155]
[1770139241359,6.66188949,100.05,100.01,38.21143226]
[1770139241559,6.66188949,100.06,100.02,10.45067802]
[1770139242066,6.66188949,100.04,100.01,27.76]
[1770139242262,6.66188949,100.04,100.01,28.21278871]
[1770139242453,16.65792766,100.04,100.01,28.21278871]
[1770139242651,6.66188949,100.03,100.01,27.76]
[1770139242968,16.65792766,100.04,100.01,27.76]
[1770139243160,17.15602869,100.05,100.01,38.21174423]
[1770139243666,6.66188949,100.04,100.01,27.76]
[1770139244371,16.6580979,100.04,100.01,27.76]
[1770139244566,6.66188949,100.02,99.983,10.00164744]
[1770139244866,6.66188949,100.02,99.984,0.45278871]
[1770139245570,0.49882498,100.03,99.984,0.45278871]
[1770139245864,7.16071447,100.03,99.991,10.00083978]
[1770139246066,9.99620841,100.04,99.992,0.45278871]
[1770139246268,9.99620841,100.04,99.99,6.66188949]
[1770139246269,9.99554398,100.05,100.01,17.11365469]
[1770139247164,9.99554398,100.05,100.02,0.45278871]
[1770139247570,0.49882498,100.07,100.03,0.45278871]
[1770139247571,6.66188949,100.07,100.03,0.45278871]
[1770139247757,10.49008115,100.09,100.04,0.59495028]
[1770139247964,6.66188949,100.08,100.04,0.45278871]
[1770139248161,6.66188949,100.07,100.02,35.01683977]
[1770139248469,6.66188949,100.07,100.02,0.59495028]
[1770139248651,6.66188949,100.07,100.03,10.4497896]
[1770139248652,16.6554437,100.07,100.03,10.4497896]
[1770139250475,42.12653376,100.07,100.02,10.46978099]
[1770139250673,6.66188949,100.06,100.02,0.47223712]
[1770139250854,6.66188949,100.06,100.02,10.47019865]
[1770139251271,6.4053992,100.06,100.02,10.47019865]
[1770139251671,6.4053992,100.05,100.02,0.47223712]
[1770139252165,6.4053992,100.05,100.01,37.75884924]
[1770139252369,6.4053992,100.05,100.01,38.23108636]
[1770139252771,16.40080703,100.05,100.01,38.23108636]
[1770139254675,6.4053992,100.07,100.02,0.14216157]
[1770139254861,39.94742804,100.14,100.02,0.14216157]
[1770139254862,16.85471571,100.09,100.04,10.4557055]
[1770139255062,41.83223594,100.09,100.04,10.4557055]
[1770139255779,6.4053992,100.08,100.04,10.4557055]
[1770139256077,35.42683674,100.09,100.04,10.4557055]
[1770139256078,41.83223594,100.09,100.04,10.4557055]
[1770139256274,9.98745735,100.13,100.09,0.4598337]
[1770139256479,16.3906191,100.15,100.1,6.8652329]
[1770139256685,0.45830842,100.18,100.12,6.8652329]
[1770139256854,6.86370762,100.16,100.11,9.98852136]
[1770139257258,6.86370762,100.16,100.11,16.85347778]
[1770139257675,6.4053992,100.15,100.11,0.4598337]
[1770139258076,6.4053992,100.15,100.11,10.44877037]
[1770139258285,6.4053992,100.15,100.11,0.4598337]
[1770139258467,6.86370762,100.16,100.11,16.85372794]
[1770139258978,9.9835953,100.17,100.12,16.39332185]
[1770139259187,16.84628276,100.18,100.13,6.4053992]
[1770139259383,6.86370762,100.17,100.12,16.85315555]
[1770139260464,9.98402555,100.16,100.12,16.85315555]
[1770139260671,9.98402555,100.16,100.12,0.4598337]
[1770139260964,6.4053992,100.15,100.11,37.74838624]
[1770139261468,41.80779706,100.16,100.11,38.20821994]
[1770139261680,41.80779706,100.16,100.11,44.61361914]
[1770139261879,9.98203234,100.18,100.14,6.8652329]
[1770139262181,0.2,100.21,100.17,6.8652329]
[1770139262386,0.2,100.21,100.17,0.4598337]
[1770139262387,16.5845021,100.21,100.17,0.4598337]
[1770139262566,17.04281052,100.21,100.16,9.98370781]
[1770139262890,0.2,100.21,100.17,0.4598337]
[1770139263071,6.86370762,100.23,100.18,10.44186604]
[1770139263271,6.4053992,100.24,100.19,0.4598337]
[1770139263466,0.45830842,100.25,100.2,0.4598337]
[1770139263782,6.4053992,100.23,100.18,41.80234609]
[1770139263989,6.86370762,100.21,100.17,38.2025538]
[1770139264286,6.86370762,100.21,100.17,27.76]
[1770139264471,9.9798303,100.21,100.17,38.20259693]
[1770139264789,16.84121676,100.23,100.18,6.8652329]
[1770139264963,16.84121676,100.23,100.18,0.4598337]
[1770139265163,6.4053992,100.22,100.18,0.4598337]
[1770139265358,6.86370762,100.2,100.16,0.4598337]
[1770139266383,6.4053992,100.19,100.15,10.44398192]
[1770139266578,6.4053992,100.17,100.14,9.98561645]
[1770139266769,6.4053992,100.17,100.13,0.4598337]
[1770139266964,6.4053992,100.16,100.12,9.98755891]
[1770139267191,35.3928991,100.19,100.13,0.4598337]
[1770139267390,16.8432851,100.21,100.17,0.14216157]
[1770139267563,10.4378859,100.21,100.17,6.54756077]
[1770139267769,10.43747042,100.21,100.17,0.14216157]
[1770139268202,6.86370762,100.19,100.14,10.5875204]
[1770139268370,6.86370762,100.19,100.12,4.27527085]
[1770139268371,6.4053992,100.16,100.12,0.4598337]
[1770139268691,6.4053992,100.15,100.12,0.4598337]
[1770139268867,16.38999017,100.16,100.12,10.44732802]
[1770139269066,6.4053992,100.16,100.13,0.4598337]
[1770139269288,16.38643523,100.19,100.15,0.4598337]
[1770139269686,16.84474365,100.19,100.15,0.4598337]
[1770139269884,6.4053992,100.17,100.13,0.60199527]
[1770139270084,0.45830842,100.18,100.14,0.4598337]
[1770139270328,41.3390253,100.19,100.15,0.4598337]
[1770139270503,6.4053992,100.18,100.15,0.4598337]
[1770139270711,0.45830842,100.24,100.18,0.14216157]
[1770139270904,6.86370762,100.26,100.2,0.4598337]
[1770139271112,6.86370762,100.26,100.21,0.14216157]
[1770139271317,6.86370762,100.25,100.2,0.4598337]
[1770139271532,6.86370762,100.25,100.2,6.8652329]
[1770139271705,6.4053992,100.22,100.19,0.14216157]
[1770139271905,6.4053992,100.23,100.19,0.4598337]
[1770139272216,6.86370762,100.24,100.19,0.4598337]
[1770139272410,6.4053992,100.25,100.2,0.4598337]
[1770139272615,6.86370762,100.25,100.2,0.4598337]
[1770139272814,16.38145666,100.24,100.2,10.43980282]
[1770139273121,9.97605746,100.24,100.2,10.43980282]
[1770139273712,6.86370762,100.23,100.19,0.14216157]
[1770139273915,0.45830842,100.23,100.18,10.44137058]
[1770139274121,6.86370762,100.23,100.18,0.4598337]
[1770139274431,6.4053992,100.22,100.18,10.44130722]
[1770139274607,6.4053992,100.22,100.18,0.4598337]
[1770139274807,6.4053992,100.22,100.18,10.441719]
[1770139275225,16.84170244,100.23,100.18,10.441719]
[1770139276032,16.84170244,100.23,100.18,16.8471182]
[1770139276216,6.86370762,100.21,100.16,38.18327463]
[1770139276416,0.45830842,100.21,100.16,38.18327463]
[1770139276740,6.4053992,100.2,100.16,28.1998337]
[1770139276916,0.45830842,100.21,100.16,28.1998337]
[1770139276917,6.4053992,100.19,100.16,28.1998337]
[1770139277113,16.38606747,100.2,100.16,38.1838462]
[1770139277313,6.4053992,100.19,100.16,28.1998337]
[1770139277535,6.4053992,100.17,100.14,0.4598337]
[1770139277731,6.4053992,100.16,100.12,10.44733481]
[1770139278022,6.4053992,100.15,100.12,0.4598337]
[1770139278428,6.4053992,100.15,100.11,27.72]
[1770139278429,6.39460051,100.15,100.11,27.72]
[1770139278629,6.39460051,100.13,100.09,0.4598337]
[1770139279009,16.38304266,100.12,100.09,0.4598337]
[1770139279610,6.39460051,100.11,100.08,0.4598337]
[1770139279839,6.39460051,100.11,100.08,0.60199527]
[1770139280008,6.39460051,100.11,100.07,27.72]
[1770139280214,6.39460051,100.1,100.07,27.72]
[1770139280642,41.35307861,100.12,100.08,0.48856633]
[1770139280944,6.39460051,100.09,100.05,10.48305286]
[1770139281228,6.39460051,100.08,100.05,0.48856633]
[1770139281415,6.39460051,100.09,100.05,10.48331459]
[1770139281729,6.39460051,100.07,100.03,38.20504557]
[1770139281930,6.39460051,100.08,100.04,0.14216157]
[1770139282119,6.39460051,100.08,100.03,44.59964608]
[1770139282433,6.39460051,100.09,100.05,0.48856633]
[1770139282607,41.3605377,100.1,100.05,10.48323823]
[1770139283010,9.98940969,100.11,100.07,0.48856633]
[1770139283211,9.98940969,100.11,100.08,0.48856633]
[1770139283609,6.39460051,100.1,100.06,10.62429263]
[1770139284410,6.39460051,100.1,100.06,0.6307279]
[1770139284628,6.39460051,100.1,100.06,10.62471655]
[1770139284912,9.98940969,100.11,100.07,10.48150734]
[1770139285411,0.49280859,100.16,100.09,0.48856633]
[1770139285616,6.8874091,100.16,100.1,6.88316684]
[1770139286013,41.33520148,100.17,100.12,6.88316684]
[1770139286332,9.98302885,100.17,100.12,0.48856633]
[1770139286530,10.47527428,100.18,100.13,7.02532841]
[1770139286724,6.39460051,100.17,100.13,0.48856633]
[1770139287034,6.8874091,100.17,100.12,7.02532841]
[1770139287334,9.98402555,100.16,100.12,17.01326228]
[1770139287827,9.9834257,100.17,100.13,6.39460051]
[1770139288028,16.37802621,100.17,100.12,7.02532841]
[1770139288238,35.43380641,100.17,100.12,0.6307279]
[1770139288409,41.82840692,100.17,100.12,17.01329702]
[1770139289235,9.98203234,100.18,100.15,0.48856633]
[1770139289538,9.98144889,100.19,100.15,6.88316684]
[1770139289713,16.86885799,100.19,100.13,28.51288947]
[1770139289913,6.8874091,100.18,100.13,28.3707279]
[1770139290118,6.39460051,100.17,100.13,28.3707279]
[1770139290319,6.39460051,100.17,100.13,28.22856633]
[1770139290938,0.49280859,100.18,100.14,0.48856633]
[1770139290939,6.8874091,100.18,100.14,0.48856633]
[1770139291233,12.10418588,100.18,100.14,0.48856633]
[1770139291412,9.98302885,100.17,100.14,0.48856633]
[1770139291613,35.43106475,100.18,100.14,16.86916558]
[1770139291816,6.39460051,100.19,100.13,27.74]
[1770139291817,6.8874091,100.17,100.13,27.74]
[1770139292634,6.8874091,100.17,100.13,28.22856633]
[1770139292815,6.39460051,100.16,100.12,0.14216157]
[1770139293012,6.39460051,100.16,100.11,17.01383545]
[1770139293013,6.39460051,100.15,100.11,0.48856633]
[1770139293216,6.8874091,100.15,100.11,0.48856633]
[1770139293430,9.98601957,100.14,100.11,0.48856633]
[1770139293622,9.98535455,100.15,100.12,0.48856633]
[1770139293835,6.8874091,100.14,100.1,0.48856633]
[1770139294138,6.39460051,100.13,100.1,0.48856633]
[1770139294337,0.49280859,100.14,100.1,0.48856633]
[1770139294338,6.8874091,100.14,100.1,0.48856633]
[1770139294513,6.39460051,100.13,100.1,0.48856633]
[1770139295118,6.39460051,100.11,100.07,10.48109592]
[1770139295315,16.38379276,100.11,100.07,10.48109592]
[1770139295522,16.38379276,100.11,100.07,0.48856633]
[1770139296123,6.39460051,100.1,100.07,0.48856633]
[1770139296436,6.39460051,100.09,100.06,0.48856633]
[1770139296639,6.39460051,100.09,100.05,37.73452346]
[1770139296640,6.39460051,100.08,100.05,27.74]
[1770139297419,16.38737948,100.08,100.05,27.74]
[1770139299042,16.38737948,100.08,100.04,10.48455826]
[1770139299840,6.39460051,100.07,100.03,0.6307279]
[1770139300031,41.36739546,100.08,100.04,0.48856633]
[1770139301144,9.99126707,100.09,100.05,7.02532841]
[1770139301557,41.36338781,100.09,100.04,6.39460051]
[1770139301732,16.88092566,100.07,100.03,10.62752552]
[1770139301931,16.38811707,100.07,100.03,10.48536395]
[1770139303840,0.49280859,100.06,100.02,0.14216157]
[1770139304040,6.39460051,100.04,100.0,9.99954634]
[1770139304432,9.99351656,100.07,100.03,16.3915674]
[1770139304630,41.37062931,100.07,100.02,16.53431148]
[1770139304847,6.39460051,100.03,100.0,0.48856633]
[1770139305742,6.8874091,100.05,100.0,9.99948246]
[1770139305943,9.99600159,100.04,100.0,9.99948246]
[1770139306142,9.99600159,100.04,100.01,0.14216157]
[1770139306730,9.99553829,100.05,100.01,0.14216157]
[1770139306931,16.3901388,100.05,100.01,0.14216157]
[1770139307530,9.99553829,100.05,100.01,6.53676208]
[1770139308152,9.99553829,100.05,100.01,16.53514362]
[1770139308543,6.39460051,100.07,100.03,0.14216157]
[1770139308747,9.99345194,100.07,100.03,6.39460051]
[1770139309148,16.38805245,100.07,100.03,0.6307279]
[1770139309463,9.99345194,100.07,100.04,0.48856633]
[1770139309760,107.66847018,100.12,100.07,0.48856633]
[1770139309761,0.49280859,100.12,100.07,0.48856633]
[1770139309960,0.49280859,100.12,100.08,6.88316684]
[1770139310157,6.39460051,100.1,100.06,0.48856633]
[1770139310356,6.8874091,100.11,100.06,16.8766727]
[1770139310659,9.9874772,100.13,100.09,0.46718601]
[1770139310844,16.87674768,100.14,100.09,0.46718601]
[1770139311048,16.87674768,100.14,100.09,6.86178652]
[1770139311252,9.98651509,100.14,100.1,7.00394809]
[1770139311453,0.49563208,100.16,100.12,6.39460051]
[1770139311651,0.49563208,100.16,100.11,0.46718601]
[1770139311652,6.39460051,100.15,100.11,0.46718601]
[1770139311961,9.98339139,100.17,100.13,6.86178652]
[1770139312163,9.98339139,100.17,100.13,16.84837541]
[1770139312364,16.87278556,100.18,100.14,0.14216157]
[1770139312565,31.84232086,100.2,100.15,0.46718601]
[1770139312855,6.39460051,100.17,100.13,10.4537749]
[1770139313038,6.89023259,100.18,100.14,0.46718601]
[1770139313236,10.47721194,100.19,100.14,6.86178652]
[1770139313439,41.82440252,100.19,100.14,0.60934758]
[1770139313656,10.47721194,100.19,100.15,0.468097]
[1770139314065,10.47721194,100.19,100.15,10.45242438]
[1770139314251,9.98034164,100.2,100.16,7.00485908]
[1770139314457,9.98034164,100.2,100.16,0.61025857]
[1770139314839,9.98034164,100.2,100.16,7.00485908]
[1770139315042,31.80663904,100.21,100.16,7.00485908]
[1770139315043,0.46251926,100.23,100.19,0.468097]
[1770139315259,6.85711977,100.24,100.19,6.86269751]
[1770139315469,6.39460051,100.23,100.19,0.468097]
[1770139315839,6.39460051,100.23,100.18,0.14216157]
[1770139316160,16.37065797,100.24,100.19,16.37563654]
[1770139316353,16.83265905,100.25,100.2,0.468097]
[1770139317466,6.39460051,100.23,100.18,16.98655352]
[1770139317767,6.85711977,100.23,100.18,16.98655352]
[1770139317972,6.39460051,100.22,100.18,16.51845652]
[1770139318265,16.83360727,100.24,100.19,10.44854321]
[1770139318643,16.83263651,100.25,100.2,7.00485908]
[1770139319262,16.83118719,100.26,100.21,6.39460051]
[1770139319452,6.39460051,100.25,100.2,7.00485908]
[1770139319653,6.39460051,100.25,100.21,0.468097]
[1770139320048,41.76635575,100.26,100.21,6.86269751]
[1770139320249,41.76635575,100.26,100.21,16.84163283]
[1770139320870,0.2,100.28,100.21,16.84163283]
[1770139320871,0.2,100.28,100.24,0.468097]
[1770139321057,10.63493919,100.28,100.24,6.39460051]
[1770139321377,10.63493919,100.28,100.24,6.86269751]
[1770139321378,10.17241993,100.28,100.24,6.86269751]
[1770139321743,0.2,100.32,100.27,0.468097]
[1770139321950,0.2,100.35,100.32,0.468097]
[1770139322250,0.2,100.37,100.34,6.39460051]
[1770139322547,6.85711977,100.39,100.33,9.96682469]
[1770139322548,0.5,100.39,100.35,6.39460051]
[1770139322752,0.5,100.39,100.34,0.28432314]
[1770139322966,0.5,100.38,100.33,16.3614252]
[1770139323147,16.19573373,100.4,100.36,6.39460051]
[1770139323148,6.73556777,100.4,100.36,6.39460051]
[1770139323471,0.5,100.36,100.32,32.95186679]
[1770139323645,6.39460051,100.36,100.32,32.95186679]
[1770139323849,6.39460051,100.34,100.32,5.21186679]
[1770139324049,6.39460051,100.33,100.28,27.72]
[1770139324267,6.39460051,100.29,100.24,0.468097]
[1770139324475,6.39460051,100.26,100.22,10.44577386]
[1770139324678,6.39460051,100.28,100.23,10.44455901]
[1770139324880,4.27527085,100.31,100.24,9.97604659]
[1770139325089,6.39460051,100.28,100.23,16.83916906]
[1770139325270,4.27527085,100.31,100.21,53.92144474]
[1770139325271,6.39460051,100.25,100.21,53.92144474]
[1770139325456,6.39460051,100.26,100.21,70.29494353]
[1770139325651,6.39460051,100.24,100.21,53.45334774]
[1770139325963,6.85711977,100.24,100.19,10.44858089]
[1770139326165,6.39460051,100.22,100.19,9.98046853]
[1770139326367,16.36866793,100.26,100.2,0.468097]
[1770139326551,16.36866793,100.26,100.19,10.1226301]
[1770139326552,10.43517268,100.28,100.23,6.86269751]
[1770139327076,6.85711977,100.28,100.24,0.14216157]
[1770139327250,6.85711977,100.28,100.23,27.72]
[1770139327251,6.39460051,100.27,100.23,27.72]
[1770139327451,16.82792733,100.3,100.25,6.86269751]
[1770139327964,6.85711977,100.29,100.24,6.53676208]
[1770139328148,6.85711977,100.29,100.25,6.39460051]
[1770139328355,0.46251926,100.31,100.27,6.39460051]
[1770139328664,16.82478197,100.33,100.28,6.39460051]
[1770139329572,16.82478197,100.33,100.28,0.468097]
[1770139329774,45.06501479,100.37,100.31,6.39460051]
[1770139329775,0.46251926,100.35,100.31,6.39460051]
[1770139330070,16.8228286,100.35,100.3,6.53676208]
[1770139330256,52.47149413,100.4,100.34,6.39460051]
[1770139330257,0.46251926,100.39,100.34,6.39460051]
[1770139330455,6.23556777,100.4,100.36,6.39460051]
[1770139330875,23.05324226,100.4,100.35,6.53676208]
[1770139331166,23.05324226,100.4,100.33,16.82927381]
[1770139331167,6.39460051,100.38,100.33,16.82927381]
[1770139331476,6.39460051,100.37,100.32,16.97261692]
[1770139331661,6.39460051,100.36,100.32,10.43570729]
[1770139331863,6.85711977,100.37,100.32,16.8303078]
[1770139332175,6.23556777,100.4,100.34,0.468097]
[1770139332370,6.23556777,100.4,100.35,0.468097]
[1770139332558,6.23556777,100.4,100.36,6.39460051]
[1770139332872,0.46251926,100.39,100.35,16.35970432]
[1770139333170,16.19577214,100.4,100.35,10.43320081]
[1770139333375,16.19577214,100.4,100.36,6.39460051]
[1770139333669,6.39460051,100.37,100.33,28.168097]
[1770139333871,6.85711977,100.35,100.3,6.39460051]
[1770139334079,6.39460051,100.34,100.29,6.86269751]
[1770139334367,16.3622074,100.33,100.29,0.468097]
[1770139334575,16.82371691,100.34,100.3,6.39460051]
[1770139334976,6.85711977,100.33,100.28,16.36621129]
[1770139335161,0.46251926,100.33,100.29,16.36532127]
[1770139335481,16.82371691,100.34,100.29,16.83341827]
[1770139335768,16.82371691,100.34,100.3,6.39460051]
[1770139335971,9.96529955,100.35,100.31,6.39460051]
[1770139336153,16.3581822,100.37,100.32,6.86269751]
[1770139336353,6.85711977,100.36,100.32,6.39460051]
[1770139336670,6.85711977,100.36,100.31,16.36316114]
[1770139336969,6.85711977,100.36,100.3,16.97469951]
[1770139336970,6.39460051,100.34,100.3,16.97469951]
[1770139337153,6.85711977,100.34,100.29,16.365209]
[1770139337352,6.39460051,100.33,100.28,16.83428495]
[1770139337567,6.39460051,100.33,100.26,9.97399924]
[1770139337568,6.39460051,100.29,100.26,9.97399924]
[1770139337757,6.85711977,100.3,100.25,16.83750697]
[1770139338159,6.39460051,100.3,100.26,10.44190436]
[1770139338380,16.82534532,100.32,100.27,6.39460051]
[1770139338675,0.46251926,100.32,100.28,6.37126406]
[1770139338856,10.43075148,100.32,100.28,6.37126406]
[1770139339259,16.80201554,100.32,100.28,0.14216157]
[1770139339452,16.80201554,100.32,100.28,6.37126406]
[1770139339666,16.80201554,100.32,100.27,6.98152263]
[1770139339974,6.37126406,100.3,100.27,0.468097]
[1770139340172,0.46251926,100.36,100.28,0.468097]
[1770139340358,0.46251926,100.36,100.28,10.43969145]
[1770139340359,6.82548893,100.33,100.28,10.43969145]
[1770139340557,6.82548893,100.32,100.28,0.468097]
[1770139340974,0.45422487,100.32,100.28,9.97153565]
[1770139341272,6.82548893,100.32,100.27,38.17238512]
[1770139341452,6.37126406,100.32,100.28,10.47169027]
[1770139341655,6.82548893,100.33,100.28,16.84295433]
[1770139341860,6.82548893,100.33,100.28,10.47169027]
[1770139342060,6.82548893,100.33,100.28,16.84295433]
[1770139342372,6.37126406,100.36,100.31,0.49987414]
[1770139342670,10.418354,100.36,100.31,6.8711382]
[1770139342863,16.78961806,100.36,100.31,6.8711382]
[1770139343072,16.78961806,100.36,100.31,0.49987414]
[1770139343380,6.82548893,100.33,100.28,16.34308019]
[1770139343568,6.37126406,100.32,100.28,10.47169027]
[1770139343875,6.37126406,100.31,100.27,27.7]
[1770139344057,0.45422487,100.32,100.27,37.67274704]
[1770139344377,6.37126406,100.31,100.27,38.17262118]
[1770139344577,6.82548893,100.31,100.27,38.17262118]
[1770139344780,6.37126406,100.3,100.27,27.7]
[1770139344976,6.37126406,100.29,100.25,10.47411136]
[1770139345164,6.37126406,100.3,100.26,0.49987414]
[1770139345359,6.37126406,100.3,100.26,0.64203571]
[1770139345683,6.37126406,100.29,100.26,10.11570756]